bitfinex/quotes_BTCUSD_20220211
["timestamp","ask_amount","ask_price","bid_price","bid_amount"]
[1644547837179,0.01,43109.0,43108.0,1.39287298]
[1644547838234,0.01,43109.0,43108.0,1.34287298]
[1644547838432,0.01,43109.0,43108.0,0.05]
[1644547839332,0.33147683,43109.0,43108.0,0.05]
[1644547839532,0.01,43109.0,43108.0,0.12682061]
[1644547840131,0.01,43109.0,43108.0,0.05]
[1644547840732,0.41254393,43109.0,43108.0,0.05]
[1644547841134,0.41254393,43109.0,43105.0,0.05]
[1644547841335,0.41254393,43109.0,43101.0,0.05]
[1644547841586,0.41254393,43109.0,43105.0,0.05]
[1644547841782,0.41314751,43109.0,43105.0,0.05]
[1644547842188,0.41314751,43109.0,43092.0,0.3]
[1644547842388,0.41314751,43109.0,43091.0,0.05]
[1644547842389,0.104554,43108.0,43091.0,0.05]
[1644547842586,0.104554,43108.0,43089.0,0.05]
[1644547842988,0.3,43107.0,43089.0,0.05]
[1644547843186,0.31727411,43096.0,43089.0,0.05]
[1644547843387,0.58283654,43096.0,43090.0,0.26947087]
[1644547843586,0.58283654,43096.0,43089.0,0.05]
[1644547843988,0.0465,43095.0,43089.0,0.05]
[1644547844192,0.0465,43095.0,43086.0,0.05]
[1644547844193,0.04707189,43095.0,43086.0,0.05]
[1644547844388,0.04707189,43095.0,43085.0,0.38031109]
[1644547844588,0.04707189,43095.0,43090.0,0.05]
[1644547844788,0.04707189,43095.0,43091.0,0.05]
[1644547845236,0.0465,43095.0,43091.0,0.11779429]
[1644547845430,0.04707189,43095.0,43091.0,0.05]
[1644547845831,0.34073877,43095.0,43085.0,0.38031109]
[1644547846033,0.34073877,43095.0,43092.0,0.05]
[1644547846335,0.34016688,43095.0,43092.0,0.05]
[1644547846736,0.00057188,43093.0,43092.0,0.05]
[1644547847534,1.0465,43095.0,43092.0,0.05]
[1644547847735,1.04707841,43095.0,43092.0,0.05]
[1644547848139,1.32209244,43095.0,43085.0,0.38031109]
[1644547848836,1.32151403,43095.0,43085.0,0.38031109]
[1644547849084,0.00057841,43093.0,43085.0,0.38031109]
[1644547849286,0.00057841,43093.0,43087.0,0.28652143]
[1644547849484,0.00057841,43093.0,43091.0,0.05]
[1644547849886,1.0465,43095.0,43091.0,0.05]
[1644547850288,0.00057841,43094.0,43091.0,0.05]
[1644547851088,1.0465,43095.0,43087.0,0.28652143]
[1644547851089,1.0465,43095.0,43087.0,0.33652143]
[1644547851290,1.0365,43095.0,43087.0,0.33652143]
[1644547851489,1.03707695,43095.0,43087.0,0.28152143]
[1644547851689,1.03707695,43095.0,43088.0,0.25]
[1644547851993,0.36972388,43093.0,43087.0,0.28152143]
[1644547852390,1.0365,43095.0,43087.0,0.28152143]
[1644547852589,0.00057695,43094.0,43083.0,0.05]
[1644547853031,0.00057695,43094.0,43084.0,0.2]
[1644547853630,0.32889854,43093.0,43086.0,0.3156431]
[1644547853831,0.32947547,43093.0,43086.0,0.3156431]
[1644547854030,0.32947547,43093.0,43086.0,0.3656431]
[1644547854430,0.32947547,43093.0,43086.0,0.3156431]
[1644547854833,0.28116554,43094.0,43086.0,0.3156431]
[1644547855033,0.00057726,43093.0,43086.0,0.3156431]
[1644547856031,0.28725191,43093.0,43086.0,0.3156431]
[1644547856232,0.34531591,43093.0,43087.0,0.25]
[1644547857481,0.058064,43093.0,43086.0,0.3156431]
[1644547857681,0.25561708,43092.0,43084.0,0.07074751]
[1644547857983,0.058067,43090.0,43084.0,0.07074751]
[1644547858780,0.25561708,43092.0,43086.0,0.25950175]
[1644547860233,0.25561708,43092.0,43085.0,0.2]
[1644547860630,0.000114,43091.0,43084.0,0.07074751]
[1644547862629,0.000114,43091.0,43084.0,0.12880777]
[1644547863430,0.000114,43091.0,43088.0,0.2]
[1644547863631,0.230114,43091.0,43088.0,0.2]
[1644547863830,0.230114,43091.0,43090.0,0.05]
[1644547864089,0.00057363,43093.0,43091.0,0.087961]
[1644547864287,0.00057363,43093.0,43092.0,0.56886286]
[1644547864487,1.0,43095.0,43092.0,0.56886286]
[1644547864686,0.00057366,43093.0,43092.0,1.38827943]
[1644547864886,0.00057366,43093.0,43092.0,1.33023743]
[1644547865091,0.00057366,43093.0,43092.0,1.32219543]
[1644547865486,1.0,43095.0,43092.0,1.32219543]
[1644547865688,1.0,43095.0,43094.0,0.058042]
[1644547865888,1.00057873,43095.0,43094.0,0.384225]
[1644547866689,1.0,43095.0,43094.0,0.384225]
[1644547867090,0.10756937,43095.0,43094.0,0.384225]
[1644547867292,0.00057872,43097.0,43096.0,0.526183]
[1644547867492,0.00057872,43097.0,43096.0,1.03931706]
[1644547867754,0.00057872,43097.0,43096.0,1.13931706]
[1644547868145,0.01,43109.0,43099.0,0.232099]
[1644547868344,0.01,43109.0,43108.0,0.47875953]
[1644547868644,0.01,43109.0,43108.0,1.17996115]
[1644547868844,0.01,43109.0,43108.0,0.85494253]
[1644547869844,0.01,43109.0,43108.0,1.19381686]
[1644547870947,0.01,43109.0,43108.0,1.14381686]
[1644547871347,0.01,43109.0,43108.0,1.19381686]
[1644547872482,0.01,43109.0,43108.0,0.79297183]
[1644547875331,0.01,43109.0,43108.0,1.10474415]
[1644547875932,0.00231048,43124.0,43110.0,1.450208]
[1644547876133,0.00231048,43124.0,43117.0,0.05]
[1644547876331,0.00231048,43124.0,43117.0,0.376183]
[1644547876531,0.42,43126.0,43117.0,0.376183]
[1644547877932,0.000461,43120.0,43117.0,0.376183]
[1644547878136,0.000461,43120.0,43117.0,0.66766475]
[1644547878332,0.000461,43120.0,43117.0,0.376183]
[1644547878732,0.42,43126.0,43117.0,0.376183]
[1644547878984,0.000461,43120.0,43117.0,0.05]
[1644547879586,0.000461,43120.0,43117.0,0.376183]
[1644547879986,0.42,43126.0,43117.0,0.66762536]
[1644547880187,0.00060471,43120.0,43117.0,0.66762536]
[1644547881187,0.42241847,43126.0,43117.0,0.34144236]
[1644547881188,0.42,43126.0,43117.0,0.34144236]
[1644547881587,0.00060471,43120.0,43117.0,0.34144236]
[1644547882388,0.42,43126.0,43117.0,0.34144236]
[1644547882834,0.00055885,43120.0,43117.0,0.34144236]
[1644547883136,0.00055885,43120.0,43119.0,0.584177]
[1644547883341,0.00055885,43120.0,43119.0,0.98012362]
[1644547883733,0.42,43126.0,43120.0,0.22396357]
[1644547883934,0.42,43126.0,43121.0,0.372683]
[1644547884131,0.42,43126.0,43121.0,0.422683]
[1644547884132,0.00055885,43122.0,43121.0,0.422683]
[1644547884332,0.00055885,43122.0,43121.0,0.83570176]
[1644547884937,0.42,43126.0,43121.0,0.83570176]
[1644547885236,0.00052746,43124.0,43122.0,0.30268996]
[1644547885436,0.00052746,43124.0,43122.0,0.34918996]
[1644547886037,0.42,43126.0,43121.0,0.634171]
[1644547886236,0.42,43126.0,43122.0,0.0465]
[1644547886484,0.00052746,43125.0,43122.0,0.34305223]
[1644547887187,0.42,43126.0,43122.0,0.0465]
[1644547887790,0.00053101,43125.0,43122.0,0.0465]
[1644547888390,0.42,43126.0,43122.0,0.0465]
[1644547888587,0.42,43126.0,43121.0,0.375938]
[1644547888588,0.42,43126.0,43121.0,0.325938]
[1644547888788,0.42,43126.0,43120.0,0.057988]
[1644547888789,0.00053702,43125.0,43116.0,0.2]
[1644547888989,0.183506,43121.0,43116.0,0.2]
[1644547889387,0.183506,43121.0,43112.0,0.05]
[1644547889388,0.00053702,43125.0,43112.0,0.05]
[1644547889589,0.33589757,43121.0,43116.0,0.27156851]
[1644547889788,0.33589757,43121.0,43117.0,0.325938]
[1644547889988,0.3364346,43121.0,43118.0,0.525938]
[1644547890253,0.183506,43120.0,43114.0,0.2]
[1644547890448,0.3364346,43121.0,43112.0,0.2]
[1644547890646,0.183506,43120.0,43112.0,0.2]
[1644547891146,0.0005366,43119.0,43118.0,0.2]
[1644547891346,0.1840426,43119.0,43118.0,0.2]
[1644547891551,0.1840426,43119.0,43114.0,0.325938]
[1644547891552,0.0005366,43119.0,43114.0,0.325938]
[1644547891746,0.0005366,43119.0,43115.0,0.325938]
[1644547892146,0.183506,43120.0,43114.0,0.2]
[1644547892345,0.18404124,43119.0,43114.0,0.2]
[1644547892545,0.00053524,43119.0,43114.0,0.2]
[1644547892745,0.00053524,43119.0,43114.0,0.258018]
[1644547892944,0.00053524,43119.0,43114.0,0.31603583]
[1644547893145,0.00053524,43119.0,43114.0,0.258018]
[1644547893345,0.183506,43120.0,43114.0,0.258018]
[1644547893548,0.00053524,43119.0,43114.0,0.058018]
[1644547893748,0.00053524,43119.0,43112.0,0.41065678]
[1644547893991,0.00053524,43119.0,43114.0,0.0580165]
[1644547894391,0.33589757,43121.0,43114.0,0.0580165]
[1644547894591,0.183506,43120.0,43114.0,0.0580165]
[1644547894791,0.00053532,43119.0,43114.0,0.0580165]
[1644547894991,0.00053532,43119.0,43114.0,0.1160335]
[1644547895593,0.30837213,43122.0,43116.0,0.05801532]
[1644547895792,0.002,43123.0,43116.0,0.05801532]
[1644547896194,0.00053562,43119.0,43116.0,0.05801532]
[1644547896392,0.00053562,43119.0,43117.0,0.325938]
[1644547896592,0.00053562,43119.0,43114.0,0.05801818]
[1644547896793,0.00053562,43119.0,43116.0,0.325938]
[1644547896994,0.290026,43120.0,43114.0,0.05801818]
[1644547897295,0.29056162,43120.0,43112.0,0.35263478]
[1644547897493,0.183506,43119.0,43112.0,0.35263478]
[1644547897744,0.52056162,43120.0,43112.0,0.41065539]
[1644547897938,0.183506,43119.0,43112.0,0.46867539]
[1644547898138,0.520026,43120.0,43112.0,0.66867539]
[1644547898337,0.30750824,43115.0,43113.0,0.325938]
[1644547900541,0.520026,43120.0,43113.0,0.325938]
[1644547900740,0.00053555,43116.0,43115.0,0.058018]
[1644547900940,0.00053555,43116.0,43115.0,0.383956]
[1644547901687,0.00053555,43116.0,43115.0,0.058018]
[1644547901688,0.3260624,43116.0,43115.0,0.058018]
[1644547901888,0.3260624,43116.0,43115.0,0.325938]
[1644547903888,0.3260624,43116.0,43112.0,0.61209231]
[1644547904091,0.3260624,43116.0,43113.0,0.325938]
[1644547905447,0.520026,43120.0,43113.0,0.325938]
[1644547905646,0.00053556,43117.0,43114.0,0.11603392]
[1644547905846,0.00053556,43117.0,43115.0,0.325938]
[1644547906548,0.33164834,43117.0,43115.0,0.325938]
[1644547908049,0.33164834,43117.0,43116.0,0.19990138]
[1644547908249,0.33164834,43117.0,43112.0,0.35407131]
[1644547908449,0.33164834,43117.0,43113.0,0.325938]
[1644547908848,0.33164834,43117.0,43106.0,0.05]
[1644547909090,0.241535,43115.0,43107.0,0.19990138]
[1644547909292,0.29498429,43109.0,43108.0,0.325938]
[1644547909488,0.29498429,43109.0,43108.0,0.32435011]
[1644547909687,0.29498429,43109.0,43108.0,0.65028811]
[1644547911792,0.29498429,43109.0,43108.0,0.325938]
[1644547911991,0.47849029,43109.0,43106.0,0.05]
[1644547912193,0.47849029,43109.0,43104.0,0.325938]
[1644547912194,0.29498429,43109.0,43104.0,0.325938]
[1644547912839,0.29498429,43109.0,43104.0,0.52583938]
[1644547913037,0.29498429,43109.0,43106.0,0.325938]
[1644547913238,0.29498429,43109.0,43105.0,0.058032]
[1644547913437,0.18774464,43108.0,43103.0,0.11605541]
[1644547913643,0.183506,43107.0,43099.0,0.19990138]
[1644547913837,0.52926168,43108.0,43100.0,0.325938]
[1644547914036,0.52926168,43108.0,43099.0,0.19990138]
[1644547914635,0.23424464,43108.0,43099.0,0.19990138]
[1644547915036,0.35744692,43102.0,43100.0,0.058039]
[1644547915238,0.35744692,43102.0,43101.0,0.325938]
[1644547916041,0.54095292,43102.0,43092.0,0.19990138]
[1644547916242,0.35744692,43102.0,43091.0,0.325938]
[1644547916487,0.35744692,43102.0,43097.0,0.00039243]
[1644547916488,0.183506,43101.0,43097.0,0.00039243]
[1644547916885,0.4293583,43101.0,43097.0,0.00039243]
[1644547917288,0.4293583,43101.0,43091.0,0.19990138]
[1644547917486,0.2458523,43101.0,43097.0,0.00039244]
[1644547917687,0.183506,43100.0,43097.0,0.00039244]
[1644547918388,0.183506,43098.0,43097.0,0.00039244]
[1644547918587,0.34110429,43099.0,43093.0,0.325938]
[1644547918787,0.183506,43098.0,43096.0,0.00039244]
[1644547919887,0.41303624,43099.0,43095.0,0.00039245]
[1644547920088,0.183506,43098.0,43095.0,0.00039245]
[1644547920931,0.058055,43099.0,43093.0,0.058051]
[1644547921130,0.15710168,43099.0,43094.0,0.00039246]
[1644547921332,0.183506,43098.0,43094.0,0.00039246]
[1644547921532,0.09904668,43099.0,43094.0,0.00039246]
[1644547922139,0.09904668,43099.0,43093.0,0.11609952]
[1644547922338,0.09904668,43099.0,43093.0,0.058051]
[1644547922537,0.09904668,43099.0,43094.0,0.00039246]
[1644547922838,0.183506,43098.0,43094.0,0.00039246]
[1644547923440,0.49168836,43099.0,43093.0,0.058051]
[1644547923739,0.183506,43098.0,43094.0,0.00039246]
[1644547924386,0.49168836,43099.0,43094.0,0.00039246]
[1644547924586,0.183506,43098.0,43093.0,0.058051]
[1644547924790,0.49168836,43099.0,43094.0,0.32633046]
[1644547924986,0.49168836,43099.0,43094.0,0.00039246]
[1644547925186,0.183506,43098.0,43094.0,0.00039246]
[1644547925385,0.49168836,43099.0,43094.0,0.00039246]
[1644547926988,0.49168836,43099.0,43093.0,0.058051]
[1644547927188,0.183506,43098.0,43094.0,0.00039246]
[1644547928035,0.54973936,43099.0,43094.0,0.00039246]
[1644547928338,0.183506,43098.0,43094.0,0.00039246]
[1644547929434,0.54973936,43099.0,43093.0,0.058051]
[1644547929634,0.183506,43098.0,43094.0,0.00039246]
[1644547929834,0.54973936,43099.0,43094.0,0.00032901]
[1644547930435,0.183506,43098.0,43094.0,0.00032901]
[1644547930637,0.241558,43098.0,43093.0,0.058051]
[1644547931037,0.183506,43098.0,43093.0,0.058051]
[1644547931238,0.09904668,43099.0,43096.0,0.325938]
[1644547931484,0.09904668,43099.0,43095.0,0.058045]
[1644547931883,0.09904668,43099.0,43095.0,0.05816278]
[1644547932083,0.183506,43098.0,43095.0,0.05816278]
[1644547932284,0.47924683,43099.0,43095.0,0.05816278]
[1644547932485,1.0,43098.0,43095.0,0.05816278]
[1644547932886,1.0,43098.0,43095.0,0.058045]
[1644547933287,0.183506,43097.0,43095.0,0.058045]
[1644547933691,1.0,43098.0,43095.0,0.058045]
[1644547934188,0.183506,43097.0,43095.0,0.058045]
[1644547934487,1.0,43098.0,43095.0,0.058045]
[1644547935336,0.183506,43097.0,43095.0,0.058045]
[1644547935632,1.0,43098.0,43095.0,0.058045]
[1644547935835,0.183506,43097.0,43095.0,0.058045]
[1644547936232,1.0,43098.0,43095.0,0.058045]
[1644547936432,0.183506,43097.0,43095.0,0.058045]
[1644547936633,1.0,43098.0,43095.0,0.058045]
[1644547937938,0.183506,43096.0,43095.0,0.058045]
[1644547938135,0.183506,43097.0,43095.0,0.058045]
[1644547938335,1.0,43098.0,43095.0,0.058045]
[1644547938536,0.183506,43097.0,43095.0,0.058045]
[1644547938736,1.0,43098.0,43095.0,0.058045]
[1644547938988,0.183506,43097.0,43095.0,0.058045]
[1644547939987,1.058051,43098.0,43095.0,0.058045]
[1644547940187,0.183506,43097.0,43095.0,0.058045]
[1644547940387,1.058051,43098.0,43095.0,0.058045]
[1644547940787,1.0,43098.0,43095.0,0.058045]
[1644547941387,0.183506,43097.0,43095.0,0.058045]
[1644547942191,0.183506,43097.0,43094.0,0.00038538]
[1644547942192,0.230006,43097.0,43094.0,0.00038538]
[1644547942743,0.230006,43097.0,43083.0,0.05]
[1644547943141,0.183506,43095.0,43094.0,0.0003939]
[1644547943336,0.5350071,43095.0,43094.0,0.0003939]
[1644547943738,0.5350071,43095.0,43083.0,0.05]
[1644547943938,0.31512765,43086.0,43082.0,0.058071]
[1644547944139,0.0465,43085.0,43082.0,0.058071]
[1644547944337,0.0465,43085.0,43078.0,0.20090138]
[1644547944338,0.104571,43085.0,43078.0,0.001]
[1644547944539,0.104571,43085.0,43079.0,0.325938]
[1644547944752,0.104571,43085.0,43083.0,0.25692712]
[1644547944937,0.104571,43085.0,43081.0,0.058073]
[1644547945137,0.104571,43085.0,43080.0,0.18988479]
[1644547945339,0.104571,43085.0,43080.0,0.07375179]
[1644547945740,0.104571,43085.0,43080.0,0.13182579]
[1644547946138,0.104571,43085.0,43080.0,0.43695562]
[1644547946339,0.104571,43085.0,43080.0,0.36399586]
[1644547946588,0.104571,43085.0,43080.0,0.05847201]
[1644547946791,0.183506,43084.0,43080.0,0.05847201]
[1644547946989,0.0465,43083.0,43080.0,0.05847201]
[1644547947190,0.058075,43082.0,43080.0,0.05847201]
[1644547947388,0.058075,43082.0,43080.0,0.058074]
[1644547947589,0.058075,43082.0,43079.0,0.00039802]
[1644547947890,0.183506,43081.0,43079.0,0.00039802]
[1644547948090,0.0465,43080.0,43079.0,0.00039802]
[1644547948291,0.230006,43080.0,43079.0,0.00039802]
[1644547948490,0.95668458,43080.0,43079.0,0.00039802]
[1644547948690,0.95668458,43080.0,43078.0,0.001]
[1644547948889,0.4892284,43079.0,43078.0,0.001]
[1644547949094,0.5357284,43079.0,43078.0,0.001]
[1644547949390,0.6357284,43079.0,43078.0,0.001]
[1644547949688,0.5357284,43079.0,43078.0,0.001]
[1644547950341,0.6357284,43079.0,43078.0,0.001]
[1644547952140,0.78764065,43079.0,43078.0,0.001]
[1644547952541,0.6857284,43079.0,43078.0,0.001]
[1644547952740,0.88758725,43079.0,43078.0,0.001]
[1644547953140,0.78758725,43079.0,43078.0,0.001]
[1644547953341,0.6357284,43079.0,43078.0,0.001]
[1644547953543,0.8657284,43079.0,43078.0,0.00092482]
[1644547954187,0.460006,43079.0,43078.0,0.00092482]
[1644547954389,0.23,43079.0,43078.0,0.00092482]
[1644547954590,0.23,43079.0,43078.0,0.32686282]
[1644547955388,0.23,43079.0,43078.0,0.00092482]
[1644547955987,0.413506,43079.0,43078.0,0.00092482]
[1644547960742,0.403506,43079.0,43078.0,0.00092482]
[1644547962788,0.40341206,43079.0,43078.0,0.00092482]
[1644547963389,0.50341206,43079.0,43078.0,0.00092482]
[1644547969093,0.54991206,43079.0,43078.0,0.00092482]
[1644547969896,0.66608806,43079.0,43078.0,0.00092482]
[1644547970093,0.76608806,43079.0,43078.0,0.00092482]
[1644547970496,1.06799516,43079.0,43078.0,0.00092482]
[1644547970692,1.06799516,43079.0,43078.0,2.269e-05]
[1644547971392,0.91799516,43079.0,43078.0,2.269e-05]
[1644547971798,0.81799516,43079.0,43078.0,2.269e-05]
[1644547975649,1.26487926,43079.0,43078.0,2.269e-05]
[1644547976251,1.41487926,43079.0,43078.0,2.269e-05]
[1644547976489,1.4205646,43079.0,43078.0,2.269e-05]
[1644547978494,1.008108,43078.0,43076.0,0.00039249]
[1644547978695,0.69619786,43077.0,43076.0,2.49e-06]
[1644547978994,1.1700063,43077.0,43075.0,0.001]
[1644547979196,0.48968033,43076.0,43075.0,0.001]
[1644547979496,0.78808743,43076.0,43075.0,0.001]
[1644547979894,0.78808743,43076.0,43060.0,0.001]
[1644547979895,0.95,43075.0,43060.0,0.001]
[1644547980097,1.296221,43074.0,43070.0,0.00017801]
[1644547980343,0.183506,43071.0,43067.0,0.00017801]
[1644547980544,0.183506,43069.0,43067.0,0.00017801]
[1644547980742,0.58521212,43069.0,43067.0,0.00017801]
[1644547980942,1.29365839,43068.0,43060.0,0.001]
[1644547981144,0.162734,43067.0,43060.0,0.001]
[1644547981343,0.73870708,43066.0,43060.0,0.001]
[1644547981544,0.35852916,43065.0,43060.0,0.001]
[1644547981743,0.59203516,43065.0,43060.0,0.001]
[1644547981944,0.69203516,43065.0,43060.0,0.001]
[1644547982144,0.85099127,43065.0,43060.0,0.001]
[1644547982347,0.69203516,43065.0,43060.0,0.001]
[1644547982545,0.85099127,43065.0,43062.0,0.000144]
[1644547982744,0.95,43064.0,43061.0,0.007144]
[1644547982945,0.35496464,43062.0,43061.0,0.007144]
[1644547983143,1.00514736,43062.0,43061.0,0.007144]
[1644547983343,1.10514736,43062.0,43061.0,0.007144]
[1644547983543,1.26410347,43062.0,43061.0,0.007144]
[1644547984189,1.32222174,43062.0,43061.0,0.007144]
[1644547984387,1.37222174,43062.0,43061.0,0.007144]
[1644547987395,1.60222174,43062.0,43061.0,0.007144]
[1644547987944,0.35438125,43061.0,43060.0,0.001]
[1644547988146,0.90705507,43061.0,43060.0,0.001]
[1644547988346,1.16601118,43061.0,43059.0,0.00047867]
[1644547988648,0.72884717,43060.0,43059.0,0.00047867]
[1644547988846,1.03347424,43060.0,43058.0,0.00014383]
[1644547989045,0.62555565,43059.0,43058.0,0.00014383]
[1644547989246,0.67205565,43059.0,43058.0,0.00014383]
[1644547989446,0.77205565,43059.0,43058.0,0.00014383]
[1644547989646,0.93103279,43059.0,43057.0,0.001]
[1644547989944,0.60308636,43058.0,43057.0,0.001]
[1644547990146,0.80856578,43058.0,43057.0,0.001]
[1644547990349,0.74958636,43058.0,43057.0,0.001]
[1644547990748,0.90856578,43058.0,43057.0,0.001]
[1644547991048,0.96669278,43058.0,43057.0,0.001]
[1644547991248,0.116256,43054.0,43042.0,0.04671927]
[1644547991491,0.30256933,43047.0,43043.0,0.30482583]
[1644547991690,0.23162025,43052.0,43043.0,0.30482583]
[1644547991691,0.35656801,43045.0,43043.0,0.30482583]
[1644547991890,0.45547046,43045.0,43043.0,0.30482583]
[1644547992490,0.058129,43044.0,43043.0,0.30482583]
[1644547995344,0.09890245,43045.0,43043.0,0.30482583]
[1644547995551,0.09890245,43045.0,43044.0,0.325938]
[1644547995746,0.39884341,43056.0,43055.0,0.35140996]
[1644547995944,0.09884341,43056.0,43055.0,0.39812923]
[1644547996144,0.09884341,43056.0,43055.0,0.72406723]
[1644547996748,0.09884341,43056.0,43055.0,0.92396861]
[1644547996947,0.09870467,43067.0,43057.0,0.325938]
[1644547997145,0.183506,43066.0,43065.0,0.04671927]
[1644547998049,0.50174922,43066.0,43065.0,0.04671927]
[1644547998245,0.183506,43066.0,43065.0,0.04671927]
[1644547998445,0.413506,43066.0,43065.0,0.04671927]
[1644547998647,0.058098,43065.0,43063.0,0.04671927]
[1644547998845,0.183506,43064.0,43063.0,0.04671927]
[1644547999487,0.183506,43064.0,43063.0,0.31810429]
[1644548000890,0.183506,43065.0,43063.0,0.31810429]
[1644548001091,0.183506,43065.0,43063.0,0.37637729]
[1644548001293,0.183506,43065.0,43063.0,0.43429329]
[1644548001694,0.23,43066.0,43064.0,0.2925174]
[1644548001899,0.23060535,43066.0,43065.0,0.325938]
[1644548002095,0.23060535,43066.0,43065.0,0.72253416]
[1644548002295,0.23060535,43066.0,43065.0,0.325938]
[1644548002754,0.23,43066.0,43065.0,0.325938]
[1644548005351,0.23,43066.0,43065.0,0.61319438]
[1644548006792,0.23,43066.0,43065.0,0.325938]
[1644548006992,0.23,43066.0,43064.0,0.000178]
[1644548007191,0.23,43066.0,43063.0,0.43429329]
[1644548007192,0.23,43066.0,43065.0,0.325938]
[1644548007591,0.23,43066.0,43064.0,0.000178]
[1644548007792,0.23,43066.0,43063.0,0.43447129]
[1644548007996,0.23,43066.0,43064.0,0.325938]
[1644548009195,1.23,43066.0,43065.0,0.19990138]
[1644548009392,1.23,43066.0,43065.0,0.325938]
[1644548009593,1.38894797,43066.0,43064.0,0.000178]
[1644548009793,0.183506,43065.0,43063.0,0.43447129]
[1644548009994,1.23,43066.0,43064.0,0.325938]
[1644548010247,1.23,43066.0,43063.0,0.43447129]
[1644548010441,1.23,43066.0,43063.0,0.37637729]
[1644548010739,1.23,43066.0,43063.0,0.37619929]
[1644548011143,1.23,43066.0,43063.0,0.10481427]
[1644548011342,1.23,43066.0,43062.0,0.000178]
[1644548011343,0.64243739,43065.0,43062.0,0.000178]
[1644548011545,0.64230381,43065.0,43059.0,0.000178]
[1644548011746,0.44230381,43065.0,43053.0,0.000178]
[1644548011943,0.183308,43063.0,43052.0,0.04671927]
[1644548012142,0.31116989,43056.0,43052.0,0.04671927]
[1644548012341,0.37995961,43057.0,43052.0,0.04689727]
[1644548012342,0.183308,43055.0,43052.0,0.04689727]
[1644548013344,0.183308,43055.0,43050.0,0.000178]
[1644548013345,0.241421,43055.0,43050.0,0.000178]
[1644548013542,0.241421,43055.0,43047.0,0.00047701]
[1644548013543,0.27930743,43054.0,43047.0,0.000178]
[1644548013748,0.183308,43053.0,43048.0,0.000178]
[1644548014000,0.46651104,43053.0,43050.0,0.04671927]
[1644548014599,0.46651104,43053.0,43048.0,0.000178]
[1644548014801,0.241433,43053.0,43047.0,0.44263177]
[1644548014999,0.241433,43053.0,43048.0,0.000178]
[1644548015200,0.241433,43053.0,43047.0,0.04736903]
[1644548015400,0.51799812,43053.0,43047.0,0.04719103]
[1644548015999,0.51799812,43053.0,43047.0,0.04671927]
[1644548016200,0.24143,43051.0,43047.0,0.04719103]
[1644548016402,0.183308,43049.0,43047.0,0.04736903]
[1644548016601,0.09825372,43049.0,43047.0,0.04719103]
[1644548017199,0.09825372,43049.0,43047.0,0.24662065]
[1644548017398,0.09825372,43049.0,43048.0,0.326353]
[1644548017599,0.09825372,43049.0,43047.0,0.04689727]
[1644548017843,0.09825372,43049.0,43047.0,0.04671927]
[1644548018644,0.43271706,43049.0,43047.0,0.04671927]
[1644548018842,0.183308,43048.0,43047.0,0.04671927]
[1644548019243,0.43271706,43049.0,43047.0,0.04671927]
[1644548019444,0.183308,43048.0,43047.0,0.04671927]
[1644548019843,0.09825372,43049.0,43047.0,0.04671927]
[1644548020044,0.183308,43048.0,43047.0,0.04671927]
[1644548020243,0.09825372,43049.0,43047.0,0.04671927]
[1644548020746,0.183308,43048.0,43047.0,0.04671927]
[1644548022998,0.32825372,43049.0,43047.0,0.04671927]
[1644548023201,0.183308,43048.0,43047.0,0.04671927]
[1644548023398,0.32825372,43049.0,43047.0,0.04671927]
[1644548024203,0.7171409,43049.0,43047.0,0.04671927]
[1644548024399,0.183308,43048.0,43047.0,0.04671927]
[1644548025001,0.7171409,43049.0,43047.0,0.04671927]
[1644548025444,0.32825372,43049.0,43047.0,0.24662065]
[1644548025645,0.32825372,43049.0,43048.0,0.326353]
[1644548025846,0.32825372,43049.0,43047.0,0.24679865]
[1644548026043,0.32825372,43049.0,43047.0,0.24662065]
[1644548026243,0.32825372,43049.0,43048.0,0.326353]
[1644548026443,0.23,43049.0,43048.0,0.326353]
[1644548027744,0.23,43049.0,43048.0,0.32614888]
[1644548029194,0.23,43049.0,43047.0,0.04689727]
[1644548029393,0.23,43049.0,43047.0,0.04671927]
[1644548029597,0.23,43049.0,43048.0,0.326415]
[1644548029792,0.23,43049.0,43047.0,0.04689727]
[1644548029993,0.23,43049.0,43047.0,0.04671927]
[1644548030694,0.23,43049.0,43048.0,0.326415]
[1644548030994,0.23,43049.0,43047.0,0.04689727]
[1644548031193,0.23,43049.0,43047.0,0.04671927]
[1644548032598,0.23,43049.0,43048.0,0.326415]
[1644548032858,0.15898958,43056.0,43055.0,0.08614315]
[1644548033052,0.183502,43056.0,43054.0,0.04671927]
[1644548033256,0.183502,43055.0,43054.0,0.04671927]
[1644548033853,0.183502,43055.0,43054.0,0.33917616]
[1644548034854,0.33043393,43058.0,43054.0,0.33917616]
[1644548035052,0.183502,43057.0,43054.0,0.33917616]
[1644548035254,0.1,43059.0,43054.0,0.33917616]
[1644548035455,0.1,43059.0,43054.0,0.29245689]
[1644548035654,0.1,43059.0,43058.0,0.04671927]
[1644548035855,0.283502,43059.0,43058.0,0.04671927]
[1644548036052,0.183502,43058.0,43057.0,0.058104]
[1644548036695,0.183502,43058.0,43056.0,0.000178]
[1644548036896,0.183502,43058.0,43055.0,0.04689727]
[1644548037897,0.05811,43057.0,43055.0,0.04689727]
[1644548038099,0.183502,43056.0,43055.0,0.04671927]
[1644548040250,0.1,43059.0,43055.0,0.24662065]
[1644548040444,0.1,43059.0,43058.0,0.04671927]
[1644548040645,0.1,43059.0,43058.0,0.57303565]
[1644548041245,0.1,43059.0,43058.0,0.88206735]
[1644548042946,0.09860907,43065.0,43061.0,0.326415]
[1644548043147,0.09860907,43065.0,43064.0,0.37313427]
[1644548043347,0.0980075,43065.0,43064.0,0.42313427]
[1644548043546,0.0980075,43065.0,43064.0,0.37313427]
[1644548043747,0.0980075,43065.0,43064.0,0.74186517]
[1644548043994,0.3280075,43065.0,43064.0,0.74186517]
[1644548045799,0.3280075,43065.0,43064.0,0.79186517]
[1644548049858,0.3280075,43065.0,43064.0,0.42313427]
[1644548053697,0.3280075,43065.0,43064.0,0.37313427]
[1644548055551,0.3280075,43065.0,43064.0,0.42313427]